Cogmind - Beta 16 @@@ ROGUE MODE // 2025.11.20 @ 20:32:09 Player: BlobtheGreat Result: Destroyed by G-50 Soldier with Heavy Laser Performance ------------- Evolutions (4) 2000 Regions Visited (5) 1000 Robots Destroyed (63) 315 Value Destroyed (1744) 1744 Prototype IDs (18) 360 Alien Tech Used (0) 0 Bonus (805) 805 TOTAL SCORE: 6224 Bonus ------- Follower Combat Kills 25 Registered with UFD 300 Met Optimus in HQ 500 Friendly Fire -20 Cogmind --------- Core Integrity 0/850 Matter 88/300 Energy 100/100 System Corruption 6% Temperature Cool (18) Movement Core (350) Ox6 Location -6/Factory Parts ------- > --- POWER (1) -------- (None) > --- PROPULSION (5) --- (None) > --- UTILITY (7) ------ Large Storage Unit Enhanced Optical Array Improved Signal Interpreter > --- WEAPON (2) ------- (None) > --- INVENTORY (15) --- Weapon Cycler Medium Armor Plating A0-MCA's Component Scanner Rainbow Chip Improved EM Pulse Cannon Hypervelocity Gauss Rifle Bore Cannon Rocket Launcher Rocket Launcher Multitool Mace Peak State ------------ > --- POWER ------------ Light Nuclear Core > --- PROPULSION ------- Airjet Combat Airjet Combat Airjet Combat Airjet > --- UTILITY ---------- Large Storage Unit Enhanced Optical Array Advanced Sensor Array Improved Signal Interpreter Improved Light Armor Plating Improved Hacking Suite Improved Hacking Suite > --- WEAPON ----------- Hypervelocity Gauss Rifle Bore Cannon > --- INVENTORY -------- Deuterium Engine Weapon Cycler Medium Armor Plating A0-MCA's Component Scanner Rainbow Chip Improved EM Pulse Cannon Rocket Launcher Rocket Launcher Multitool [Rating: 62] Favorites ----------- Power Subdweller Power Source Engine Subdweller Power Source Power Core Light Nuclear Core Propulsion Improved Treads Treads Improved Treads Leg Aluminum Leg Hover Unit Combat Airjet Flight Unit Xenon Bombardment Thruster Utility High-capacity Storage Unit Device Seismic Detector Storage High-capacity Storage Unit Processor Enhanced Optical Array Hackware Improved Hacking Suite Protection Gun Armor Weapon Shotgun Energy Gun Improved Medium Laser Ballistic Gun Shotgun Ballistic Cannon Bore Cannon Launcher Rocket Launcher Special Weapon CPS Tube Impact Weapon Heavy Mace Slashing Weapon Mining Claw Build | -11 -10 -10 -9 -9 -6 ------- Run | Yrd Mat Sub Rec Scr Fac Slots Evolved 8 | . . . . . 8 Power . | . . . . . . Propulsion 3 | . . . . . 3 Utility 5 | . . . . . 5 Weapon . | . . . . . . Parts Attached 49 | 7 9 10 . 12 11 Power 5 | 1 1 1 . 1 1 Engine 4 | 1 1 1 . . 1 Core 1 | . . . . 1 . Reactor . | . . . . . . Propulsion 13 | 2 4 1 . 4 2 Treads 5 | 2 2 1 . . . Leg 2 | . 2 . . . . Wheel . | . . . . . . Hover 4 | . . . . 2 2 Flight 2 | . . . . 2 . Utility 14 | 2 1 1 . 4 6 Device 4 | 1 . . . 1 2 Storage 3 | 1 1 . . 1 . Processor 2 | . . . . . 2 Hackware 2 | . . . . . 2 Protection 3 | . . 1 . 2 . Artifact . | . . . . . . Weapon 17 | 2 3 7 . 3 2 Energy Gun 4 | 2 1 1 . . . Energy Cannon . | . . . . . . Ballistic Gun 5 | . 2 2 . 1 . Ballistic Cannon 1 | . . 1 . . . Launcher 2 | . . 2 . . . Special Weapon 1 | . . . . 1 . Impact Weapon 2 | . . . . 1 1 Slashing Weapon 2 | . . 1 . . 1 Piercing Weapon . | . . . . . . Special Melee Weapon . | . . . . . . Unidentified Prototypes 2 | . 1 1 . . . Parts Lost 14 | . 1 1 1 . 11 Power 3 | . 1 . . . 2 Propulsion 4 | . . 1 . . 3 Utility 5 | . . . . . 5 Weapon 2 | . . . 1 . 1 Highest Loss Streak 5 | . 1 1 1 . 5 To Critical Strikes . | . . . . . . Average Backups 16 | 4 15 17 17 17 10 Power 1 | . 1 1 1 . . Propulsion 5 | 3 5 5 5 5 . Utility 4 | . 1 5 6 5 4 Weapon 5 | . 6 6 4 4 4 Tool/Special . | . . . . . . Unused Backups 24 | . 6 1 . 12 5 Power 1 | . . . . 1 . Propulsion 8 | . 2 1 . 5 . Utility 7 | . . . . 4 3 Weapon 7 | . 4 . . 2 1 Tool/Special 1 | . . . . . 1 Average Slot Usage (%) 97 | . 99 99 100 97 72 Engine 10 | . 13 11 11 9 . Core 1 | . . . . 2 3 Treads 18 | . 5 23 22 18 . Leg 1 | . 22 . . . . Hover 2 | . . . . 4 21 Device 2 | . 14 2 . . 5 Storage 11 | . 14 11 11 11 6 Protection 8 | . . 8 11 10 3 Energy Gun 10 | . 17 12 11 9 . Ballistic Gun 18 | . 10 21 22 19 2 Impact Weapon 1 | . . . . 3 1 Slashing Weapon 6 | . . 6 11 6 . Peak Build Rating 62 | 7 14 32 29 33 62 Average Rating 26 | 5 10 26 28 28 49 On Entrance 18 | . 7 14 28 29 33 Avg Prop Armor Cover (%) 5 | . . . . 3 7 Naked Turns . | . . . . . . Heaviest Build 67 | 12 50 67 60 61 44 Greatest Support 46 | 40 46 46 43 43 44 Greatest Overweight (x) 7 | . 2 1 1 1 7 Average Overweight (x) . | . 1 1 1 . . Largest Inventory Capacity 20 | 8 20 20 20 20 15 Average Capacity 19 | 7 19 20 20 18 15 Most Carried 20 | 7 20 20 20 20 13 Average Carried 18 | 4 15 19 19 18 10 Final Capacity 20 | 8 20 20 20 15 15 Final Carried 20 | 7 17 20 20 14 11 Class Distribution -------------------- 38% | Commander-Gunner 30% | Gunner 20% | Mutant 7% | Scavenger-Mutant Dominant Class ---------------- Mutant | -10/Materials Gunner | -10/Subcaves Commander-Gunner | -9/Recycling Commander-Gunner | -9/Scraptown Scavenger-Scout | -6/Factory Resources | -11 -10 -10 -9 -9 -6 ----------- Run | Yrd Mat Sub Rec Scr Fac Matter Collected 1747 | 270 292 667 118 140 260 Remotely . | . . . . . . Salvage Created 2513 | 114 443 592 522 513 329 Parts 123 | 10 21 41 28 10 13 Haulers Intercepted 1 | . 1 . . . . Recyclers Shooed . | . . . . . . Parts Field Recycled . | . . . . . . Retrieved Matter . | . . . . . . Parts Self-Destructed 23 | . . 23 . . . Prevented . | . . . . . . Parts Restored . | . . . . . . Kills | -11 -10 -10 -9 -9 -6 ------- Run | Yrd Mat Sub Rec Scr Fac Combat Hostiles Destroyed 40 | . 9 16 9 . 6 Guns 34 | . 9 14 9 . 2 Cannons 2 | . . . . . 2 AOE 2 | . . 2 . . . Classes Destroyed 14 | 2 4 3 2 3 . Worker 1 | . 1 . . . . Builder 1 | . . . . 1 . Tunneler 5 | 3 . . 1 1 . Hauler 3 | . 1 . . 2 . Recycler 5 | 1 1 . 1 2 . Turret 2 | . . 2 . . . Swarmer 6 | . 3 2 . 1 . Grunt 12 | . 6 . 3 2 1 Protector 1 | . . . . 1 . Sentry 9 | . . 1 4 1 3 Demolisher 2 | . . . 1 1 . Programmer 3 | . . . 1 . 2 Subdweller 13 | . . 13 . . . Scientist 1 | . . . . 1 . Best Kill Streak 2 | 1 2 2 2 . 1 Combat Bots Only 2 | . 2 2 2 . 1 Max Kills in Single Turn 2 | 1 1 2 2 2 1 Gunslinging . | . . . . . . Exploded 2 | . . 2 . . . Melee . | . . . . . . Uniques/NPCs Destroyed . | . . . . . . Combat | -11 -10 -10 -9 -9 -6 -------- Run | Yrd Mat Sub Rec Scr Fac Hostile Shots Fired 323 | . 52 68 19 . 184 Missed 137 | . 19 34 6 . 78 Hits 186 | . 33 34 13 . 106 Projectile 186 | . 33 34 13 . 106 AOE 4 | . . . 4 . . Critical Strikes 5 | . 2 2 . . 1 Damage Taken 3127 | . 338 636 295 . 1858 Core 1029 | . 60 79 31 . 859 Absorbed by Shields . | . . . . . . Core Remaining (%) 66 | 100 . . . 32 . Volleys Fired 160 | 11 38 41 15 1 54 Largest 4 | 2 2 4 3 1 1 Hottest 158 | 90 90 158 102 . 48 Shots Fired 293 | 21 70 102 45 1 54 Gun 238 | 21 70 86 45 . 16 Cannon 39 | . . 1 . . 38 Launcher 15 | . . 15 . . . Special 1 | . . . . 1 . Kinetic 153 | . 22 47 30 . 54 Thermal 124 | 21 48 40 15 . . Explosive 15 | . . 15 . . . Electromagnetic . | . . . . . . Robot Hit Streak 12 | 6 11 12 12 3 9 Robot Miss Streak 10 | 5 10 7 4 . 8 Penetration Max 1 | . . . . . 1 Secondary Targets 1 | . . 1 . . . Max Gunslinging Chain 1 | . . 1 . . . Shots Hit Robots 186 | 9 41 58 28 21 29 Core Hits 104 | 5 24 42 23 4 6 Critical Kills 6 | . 1 . 1 1 3 Critical Parts Destroyed 11 | . . . . 2 9 Critical Strikes 27 | 1 2 5 3 3 13 Burn 9 | 1 1 5 2 . . Destroy 14 | . 1 . 1 . 12 Smash 4 | . . . . 3 1 Melee Attacks 69 | . . 34 1 20 14 Impact 31 | . . . . 18 13 Slashing 38 | . . 34 1 2 1 Piercing . | . . . . . . Sneak Attacks 20 | . . . . 20 . Combat Hostiles . | . . . . . . Follow-up Attacks . | . . . . . . Damage Inflicted 4962 | 119 631 1375 668 1539 630 Guns 2340 | 119 625 938 598 . 60 Cannons 274 | . . . . . 274 Explosions 437 | . . 437 . . . Melee 1883 | . . . 48 1539 296 Ramming 28 | . 6 . 22 . . Kinetic 1605 | . 251 598 422 . 334 Thermal 1009 | 119 374 340 176 . . Explosive 437 | . . 437 . . . Electromagnetic . | . . . . . . Impact 1745 | . . . . 1449 296 Slashing 138 | . . . 48 90 . Piercing . | . . . . . . Highest Corruption 6 | . . . . . 6 Average Corruption 5 | . . . . . 5 Corruption Purged . | . . . . . . Corruption Blocked . | . . . . . . Effects 11 | . . . . . 11 Message Errors 3 | . . . . . 3 Matter Fused 5 | . . . . . 5 Parts Rejected 1 | . . . . . 1 Data Loss (minor) 2 | . . . . . 2 Overload Shots . | . . . . . . Overflow Damage 692 | . . 37 . 541 114 Projectiles 20 | . . . . 11 9 Explosions 80 | . . 37 . . 43 Melee 592 | . . . . 530 62 Knockbacks 10 | . . . . 8 2 Impact 5 | . . . . 4 1 Kinetic 1 | . . . . . 1 Secondary 4 | . . . . 4 . Self-Inflicted Damage 283 | . . 75 . . 208 Shots 5 | . . 2 . . 3 Rammed 8 | . 2 . 6 . . Targets Rammed 9 | . 3 . 6 . . Kicked 1 | . 1 . . . . Crushed . | . . . . . . Highest Temperature 160 | 160 144 42 126 . 8 Average Temperature 41 | 62 44 18 33 . 4 Received Heat Transfer 930 | . 117 168 42 . 603 Siege Activations . | . . . . . . Martial Activations . | . . . . . . Shielding Activations . | . . . . . . Robots Disrupted . | . . . . . . Combat Hostiles . | . . . . . . Robots Corrupted 10 | . . . . 8 2 Combat Hostiles 2 | . . . . . 2 Parts Fried 13 | . . . . 11 2 Impact Corruptions 23 | . . . . 20 3 Robots Melted . | . . . . . . Combat Hostiles . | . . . . . . Parts Melted 5 | 1 1 2 1 . . Heat Transferred 2989 | 396 965 1110 518 . . Parts Sabotaged . | . . . . . . Parts Stolen . | . . . . . . Parts Stripped . | . . . . . . Power Chain Reactions . | . . . . . . Alert | -11 -10 -10 -9 -9 -6 ------- Run | Yrd Mat Sub Rec Scr Fac Maximum Alert Level . | . . . . . . Low Security (%) 100 | 100 100 . 100 . 100 Level 1 . | . . . . . . Level 2 . | . . . . . . Level 3 . | . . . . . . Level 4 . | . . . . . . Level 5 . | . . . . . . High Security . | . . . . . . Max Security . | . . . . . . Peak Influence 111 | 5 78 . 51 . 111 Initial . | . . . . . . Average 23 | . 22 . 13 . 58 Influence Increases 1393 | 20 334 190 397 . 452 Destroy 0b10 Robot/C 600 | . 180 100 200 . 120 Destroy 0b10 Robot/NC 60 | 20 15 . 25 . . Destroy Leader 102 | . 52 . . . 50 Allied During Kill 5 | . . . 5 . . Successful Hack 58 | . 27 . 17 . 14 Select Force Hacks 120 | . . . 120 . . Disable Machine 75 | . . . . . 75 Destroy Structure 43 | . . . . . 43 Partial Spotted 30 | . 15 . . . 15 Lose Combat Pursuer 300 | . 45 90 30 . 135 Influence Decreases 1361 | 20 334 190 397 . 420 Time Decay 1185 | 20 324 180 341 . 320 Lost Part 130 | . 10 10 10 . 100 Lost Ally 46 | . . . 46 . . Squads Dispatched 6 | . 2 . . . 4 Investigation 2 | . . . . . 2 Extermination 1 | . . . . . 1 Reinforcement 3 | . 2 . . . 1 Assault . | . . . . . . Garrison . | . . . . . . Intercept . | . . . . . . Searches Triggered . | . . . . . . Construction Impeded 1 | . . . . . 1 Haulers Reinforced . | . . . . . . Active Scanning Responses . | . . . . . . Cargo Convoy Interrupts . | . . . . . . Stealth | -11 -10 -10 -9 -9 -6 --------- Run | Yrd Mat Sub Rec Scr Fac Distress Signals 4 | . 2 . 1 . 1 Communications Jammed . | . . . . . . Distress Signals . | . . . . . . Times Spotted 76 | . 20 26 9 . 21 Peak Tracking Total 4 | . 4 4 3 . 4 Tactical Retreats 11 | . 2 2 2 . 5 Traps | -11 -10 -10 -9 -9 -6 ------- Run | Yrd Mat Sub Rec Scr Fac Traps Triggered 1 | . . 1 . . . Indirectly . | . . . . . . Trap Hack Attempts . | . . . . . . Triggered . | . . . . . . Disarmed . | . . . . . . Reprogrammed . | . . . . . . Reused . | . . . . . . Traps Extracted . | . . . . . . Installed . | . . . . . . Triggered . | . . . . . . Machines | -11 -10 -10 -9 -9 -6 ---------- Run | Yrd Mat Sub Rec Scr Fac Machines Disabled 10 | . . 5 . . 5 Max in Single Turn 4 | . . 2 . . 4 Garrison Access 1 | . . . . . 1 Machines Repaired . | . . . . . . Machines Dismantled . | . . . . . . Machines Sabotaged . | . . . . . . Overloaded Fab Kills . | . . . . . . Hacking | -11 -10 -10 -9 -9 -6 --------- Run | Yrd Mat Sub Rec Scr Fac Machines Accessed 24 | . 4 3 10 2 5 Terminals 12 | . 4 . 6 . 2 Fabricators 1 | . . . . . 1 Repair Stations . | . . . . . . Recycling Units 4 | . . . 4 . . Scanalyzers 1 | . . . . . 1 Garrison Access 1 | . . . . . 1 Total Hacks 66 | . 16 5 27 4 14 Successful 41 | . 8 5 16 4 8 Failed 25 | . 8 . 11 . 6 Catastrophic 6 | . 1 . 3 . 2 Database Lockouts . | . . . . . . Manual 30 | . 15 . 8 . 7 Terminals 48 | . 16 . 23 . 9 Fabricators 2 | . . . . . 2 Repair Stations . | . . . . . . Recycling Units 4 | . . . 4 . . Scanalyzers 2 | . . . . . 2 Garrison Access 1 | . . . . . 1 Terminal Hacks 23 | . 2 5 9 4 3 Record 7 | . . 3 . 4 . Part Schematic 3 | . . . 2 . 1 Robot Schematic 1 | . . . 1 . . Robot Analysis 3 | . 2 . 1 . . Prototype ID Bank 1 | . . . 1 . . Open Door 1 | . . 1 . . . Terminal Index 1 | . . . . . 1 Fabricator Index 1 | . . . 1 . . Recycling Unit Index 1 | . . . 1 . . Dispatch Records 1 | . . . 1 . . Zone Layout 2 | . . . 1 . 1 Proto ID Catalog 1 | . . 1 . . . Fabricator Hacks 2 | . . . . . 2 Load Schematic 1 | . . . . . 1 Build 1 | . . . . . 1 Repair Station Hacks . | . . . . . . Recycling Unit Hacks . | . . . . . . Scanalyzer . | . . . . . . Garrison Access Hacks 1 | . . . . . 1 Seal Access 1 | . . . . . 1 Unauthorized Hacks 15 | . 6 . 7 . 2 Terminals 11 | . 6 . 3 . 2 Botnet 4 | . 2 . 1 . 1 Skim 7 | . 4 . 2 . 1 Fabricators . | . . . . . . Repair Stations . | . . . . . . Recycling Units 4 | . . . 4 . . Tunnel 4 | . . . 4 . . Scanalyzers . | . . . . . . Garrison Access . | . . . . . . Data Cores Recovered . | . . . . . . Used . | . . . . . . Hacking Detections 12 | . 4 . 4 . 4 Full Trace Events 4 | . . . 2 . 2 Feedback Events . | . . . . . . Feedback Blocked . | . . . . . . Robot Schematics Acquired 1 | . . . 1 . . Robots Built . | . . . . . . Authchips . | . . . . . . Time . | . . . . . . Total Robot Build Rating . | . . . . . . Part Schematics Acquired 3 | . . . 2 . 1 Parts Built 2 | . . . . . 2 Authchips . | . . . . . . Time 95 | . . . . . 95 Total Part Build Rating 10 | . . . . . 10 Part Studies Acquired . | . . . . . . Parts Repaired . | . . . . . . Time . | . . . . . . Parts Recycled . | . . . . . . Recycled Matter . | . . . . . . Retrieved Matter . | . . . . . . Retrieved Components . | . . . . . . Parts Scanalyzed . | . . . . . . Part Schematics Acquired . | . . . . . . Parts Damaged . | . . . . . . Bothacking | -11 -10 -10 -9 -9 -6 ------------ Run | Yrd Mat Sub Rec Scr Fac Used RIF Installer . | . . . . . . Robots Hacked . | . . . . . . Non-combat . | . . . . . . Combat . | . . . . . . Robot Hacks Applied . | . . . . . . Relay Couplers Released . | . . . . . . Fabnet Peak Effective % . | . . . . . . Robots Rewired 19 | . . . 19 . . Allies Hacked . | . . . . . . Hacks Repelled . | . . . . . . Allies | -11 -10 -10 -9 -9 -6 -------- Run | Yrd Mat Sub Rec Scr Fac Total Allies 19 | . . . 19 . . Largest Group 14 | . . . 14 12 . Highest-Rated Group 153 | . . . 153 153 . Highest-Rated Ally 34 | . . . 34 34 . Total Orders 36 | . . . 3 33 . STAY 34 | . . . 2 32 . FOLLOW 1 | . . . 1 . . AID 1 | . . . . 1 . Ally Attacks 8 | . . . 8 . . Total Damage 60 | . . . 60 . . Kills 1 | . . . 1 . . Allies Corrupted 7 | . . . . 7 . Allies Melted . | . . . . . . Intel | -11 -10 -10 -9 -9 -6 ------- Run | Yrd Mat Sub Rec Scr Fac Active Infowar (turns) 3151 | 88 1338 957 . . 768 Optics 753 | . . . . . 753 Sensors 654 | . . . . . 654 Seismic 2383 | 88 1338 957 . . . Robot Analysis Total 3 | . 2 . 1 . . Derelict Logs Recovered 4 | . . 1 . 3 . Drone Launches . | . . . . . . Drone Recoveries . | . . . . . . Exploration | -11 -10 -10 -9 -9 -6 ------------- Run | Yrd Mat Sub Rec Scr Fac Turns Passed 16131 | 256 1338 5321 2170 6247 799 Spaces Moved 7082 | 131 466 2004 767 2997 717 Core 28 | 2 . . . 13 13 Treads 5034 | 129 100 2004 767 2034 . Legs 366 | . 366 . . . . Wheels . | . . . . . . Hover 1298 | . . . . 594 704 Flight 356 | . . . . 356 . Fastest Speed 37 | 50 160 240 240 37 65 Average Speed 203 | 158 246 240 240 196 73 Slowest Speed 400 | 160 320 240 240 240 400 Overloaded Moves . | . . . . . . Propulsion Burnouts . | . . . . . . Robots Hopped . | . . . . . . Potential Cave-ins 8 | . . . . . 8 Cave-ins Triggered . | . . . . . . Exploration Rate (%) 63 | 7 73 98 98 86 17 Regions Visited 5 Branch Regions 3 Pre-discovered Areas 7 | . . 1 4 2 . Known Exits Taken . | . . . . . . Unknown Exits Taken 5 | 1 1 1 1 1 . Scrap Searched 19 | . . 9 . 10 . Spaces Dug 23 | . . 14 . . 9 Terrain Destroyed 117 | . . 71 . . 46 Melee 2 | . . . . . 2 Projectile 15 | . . . . . 15 AOE 100 | . . 71 . . 29 Terrain Rammed . | . . . . . . Walls Destroyed . | . . . . . . Machines Disabled . | . . . . . . Actions | -11 -10 -10 -9 -9 -6 --------- Run | Yrd Mat Sub Rec Scr Fac Total 8388 | 157 585 2365 1053 3321 907 Wait 651 | . 38 241 47 219 106 Move 7077 | 130 465 2003 766 2996 717 Hop . | . . . . . . Pick Up 57 | 8 16 9 1 22 1 Fast Attach 31 | 7 5 2 . 13 4 Attach 14 | . 1 3 1 2 7 Detach 18 | . 5 . . 10 3 Swap 29 | . 3 24 . 1 1 Drop 57 | 1 11 8 . 37 . Fire 160 | 11 38 41 15 1 54 Melee 69 | . . 34 1 20 14 Ram . | . . . . . . Kick 1 | . 1 . . . . Crush 8 | . 2 . 6 . . Escape Stasis . | . . . . . . Rewire 216 | . . . 216 . . Trap . | . . . . . . Miscellaneous . | . . . . . . Route ------- -11/Scrapyard -10/Materials (discovered 4 exits: [*Mat x2] / [*Min] / *Sub) -10/Subcaves (discovered 3 exits: [*Mat x2] / *Rec) -9/Recycling (discovered 2 exits: [*Fac] / *Scr) -9/Scraptown (discovered 2 exits: *Fac x2) -6/Factory (discovered 2 exits: [*Fac] / *Low) History --------- Turn | Location | Event 18 | -11/Scrapyard | Discovered new exit (range 16) 257 | -11/Scrapyard | Entered Materials 315 | -10/Materials | Build established: Mutant 852 | -10/Materials | Discovered new exit (range 10) 952 | -10/Materials | Discovered new exit (range 16) 1479 | -10/Materials | Discovered new exit (range 10) 1585 | -10/Materials | Discovered new exit (range 5) 1595 | -10/Materials | Entered Subcaves 1600 | -10/Subcaves | Discovered new exit (range 12) 1750 | -10/Subcaves | Visited Clippyterm 1757 | -10/Subcaves | Learned Factory emergency access door positions 2129 | -10/Subcaves | Learned location of Storage (-9) 2504 | -10/Subcaves | A Subdweller sparked back to life 2504 | -10/Subcaves | A Subdweller sparked back to life 2504 | -10/Subcaves | A Subdweller sparked back to life 2544 | -10/Subcaves | Found Prototype Protection 2552 | -10/Subcaves | Identified Gun Armor 2553 | -10/Subcaves | Attached Gun Armor, gained temporary slots: Weapon x2 2832 | -10/Subcaves | Build established: Gunner 3270 | -10/Subcaves | Shifting Twisted Machinery released Multitool 3318 | -10/Subcaves | Discovered new exit (range 12) 3360 | -10/Subcaves | Core integrity fell below 50% 3513 | -10/Subcaves | Discovered new exit (range 6) 3523 | -10/Subcaves | Shifting Twisted Machinery released Scrap Shield 3608 | -10/Subcaves | Shifting Twisted Machinery released Riot Gun 3964 | -10/Subcaves | Disturbed a concealed Subdweller 4169 | -10/Subcaves | A swath of the cavern ceiling suddenly collapsed 4256 | -10/Subcaves | A swath of the cavern ceiling suddenly collapsed 4444 | -10/Subcaves | Shifting Twisted Machinery released Sub. Monowheel 4457 | -10/Subcaves | Shifting Twisted Machinery released Barrage Gun 4601 | -10/Subcaves | Shifting Twisted Machinery released Shrapnel Trap 4834 | -10/Subcaves | Disturbed a concealed Subdweller 5188 | -10/Subcaves | Visited 4L-MR0's lab 5209 | -10/Subcaves | Found Rainbow Chip 6916 | -10/Subcaves | Entered Recycling 7395 | -9/Recycling | Build established: Commander-Gunner 8318 | -9/Recycling | Discovered new exit (range 16) 8383 | -9/Recycling | Lost 5 allies 8975 | -9/Recycling | Scanned before Scraplab entrance 9011 | -9/Recycling | Entered Scraplab 9030 | -9/Recycling | Discovered new exit (range 4) 9086 | -9/Recycling | Entered Scraptown 9086 | -9/Scraptown | Accompanied by 12 allies 9130 | -9/Scraptown | Heard Great Nut preacher, LISTEN AND RECITE! 9324 | -9/Scraptown | Visited Shadow of the Wyrm 9377 | -9/Scraptown | Visited Red Mages 9744 | -9/Scraptown | Discovered new exit (range 13) 9806 | -9/Scraptown | Visited Cyclists 9833 | -9/Scraptown | Visited IN-MT5's Study 9864 | -9/Scraptown | Visited Cave Peace 9967 | -9/Scraptown | Visited Bundlers 10150 | -9/Scraptown | Visited UFD Registry 10150 | -9/Scraptown | Registered with UFD as "Pulselever" 10260 | -9/Scraptown | Visited A0-MCA Data Center 10330 | -9/Scraptown | Visited Chapter 10 10363 | -9/Scraptown | Visited DA-N13 Charitable Foundation 10435 | -9/Scraptown | Visited Curators Association 10512 | -9/Scraptown | Visited Scrapoid Research Area 10546 | -9/Scraptown | Visited Abandonware Association 10572 | -9/Scraptown | Learned abandonware demo "SHUTEYE.EXE" 10625 | -9/Scraptown | Visited Junk Repository 10776 | -9/Scraptown | Visited Assassins FH 10872 | -9/Scraptown | Entered Cyclist Reading Room 11432 | -9/Scraptown | Attached CPS modules to Grenadier 2a. 11836 | -9/Scraptown | Scanned Subdweller tech in exchange for log data 11841 | -9/Scraptown | Learned Factory emergency access door positions 11843 | -9/Scraptown | Learned location of Testing (-2) 11846 | -9/Scraptown | Learned location of Quarantine (-3) 12148 | -9/Scraptown | Delivered Scrap Shield to a Scientist 12339 | -9/Scraptown | Found DCF Scrap (33 items) 13612 | -9/Scraptown | Build established: Gunner 14007 | -9/Scraptown | Build established: Mutant 14364 | -9/Scraptown | Given an A+ rating by A0-MCA 14368 | -9/Scraptown | Found A0-MCA's Component Scanner 14671 | -9/Scraptown | Build established: Scavenger-Mutant 15258 | -9/Scraptown | Met Optimus 15258 | -9/Scraptown | Accepted into 0bPrime 15325 | -9/Scraptown | Discovered new exit (range 5) 15333 | -9/Scraptown | Entered Factory 15333 | -6/Factory | Evolved 8 slots: Propulsion x3, Utility x5 15659 | -6/Factory | Discovered new exit (range 15) 15823 | -6/Factory | Lost 4 parts (1p1n2u) 15845 | -6/Factory | Discovered new exit (range 10) 15852 | -6/Factory | Identified exit to Lower Caves 16009 | -6/Factory | Fabricated Cmb. Airjet? 16109 | -6/Factory | Core integrity fell below 50% 16122 | -6/Factory | Lost 5 parts (2n2u1w) 16123 | -6/Factory | Core integrity fell below 20% 16132 | -6/Factory | Destroyed by G-50 Soldier with Heavy Laser Last Messages --------------- 16009_ >> FABRICATOR: Completed Cmb. Airjet? 16033_ System corrupted: Matter fused (-7). 16054_ System corrupted: Component data lost. 16069_ K-01 Serf cleans the Pressure Siphon. 16080_ Adv. Sensor Array destroyed. 16084_ Nuclear Reactor explodes. 16084_ Cmb. Airjet destroyed. 16084_ Destroyed Cmb. Airjet. 16084_ Cmb. Airjet destroyed. 16084_ Destroyed Cmb. Airjet. 16085_ System corrupted: Cmb. Airjet rejected. 16088_ The unstable cave ceiling collapses. 16089_ Power Sword destroyed. 16091_ Imp. Hacking Suite destroyed. 16097_ The unstable cave ceiling collapses. 16108_ Critical hit (Burn: +37). 16109_ The unstable cave ceiling collapses. 16121_ System corrupted: Component data lost. 16129_ U-05 Engineer lays Concrete. Map ----- +----------------------------------------------------+ | ???????????????????????????# ??????????# | | ???????????????????????????# ??????????#### | | ???????????????????????????# < ?????????????? | | ???????????????????????????# ?????????????? | | ???????????????????????????# ?????????????? | | ???????????????????????????# ?????????????? | | ???????????????????????????# ?????????????? | | ????????????????????????????# ?????????????? | | ???????????????????####???###? #????????????? | | ???????????????????# ??? #????????????? | | ???????????????????# ??? #????????????? | | ???????????????????# ??"" """" """#????????????? | | ???????????######### """" """" T"#????????????? | | ??????????? !! ?# """" """" """#????????????? | | ??????# ??? !! ?# #????????????? | | ??????# ?? # """" """" #????????????? | | ??????# # """" """" #????????????? | | ??????# # """"^"""" #############+ | | ??????# """ """ # ^ ^ | | ??????# """ """ # """" """" | | ??????# """ """ + """" """" | | ??????# "" "" # """" """" | | ??????# "" "" # | | ????????? ?# u gg | | ??????????? # g | | ????????????#+#?## # @ ###### ############+## | | ????????????# #?# #??# #?# # | | ????????????# #?# = #### ### "" " # | | ????????????# #?# # # "" " # = | | ????????????# ### "" # "" " # | | ????????????# "T + S " # | | ????????????###### ! # "" " + | | ?????????????????# # # "" " # " | | ?????????????????# ###### "" " # " | | ?????????????????# #????# " # " | | ?????????????????# #????# " # | | ?????????????????# ! #????#! # | | ?????????????????# ###????######## | | ?????????????????##############?????????????###### | | ?????????????????????????????????????????????????? | | ?????????????????????????????????????????????????? | | ?????????????????????????????????????????????????? | | ?????????????????????????????????????????????????? | | ?????????????????????????????????????????????????? | | ?????????????????????????????????????????????????? | | ?????????????????????????????????????????????????? | | ?????????????????????????????????????????????????? | | ?????????????????????????????????????????????????? | | ?????????????????????????????????????????????????? | | ?????????????????????????????????????????????????? | +----------------------------------------------------+ Best States ------------- Heat Dissipation 37 Energy Generation 15 Energy Capacity 275 Matter Stores 300 Matter Capacity 300 Sight Range 22 Robot Scan Range 16 Terrain Scan Density 10 Additional Mass Support 9 Armor Coverage 225 Evasion (%) 62 Recoil Reduction 2 Offensive Hacking 24 Item Schematics ----------------- Scythe | -9/Recycling | Hacked Hvy. Hammer | -9/Recycling | Hacked Cmb. Airjet | -6/Factory | Hacked Robot Schematics ------------------ L-31 Rogue | -9/Recycling | Hacked Fabricated ------------ Cmb. Airjet | x2 | -6/Factory Repaired ---------- Nothing Studied --------- None Alien Tech Used ----------------- None Achievements -------------- None Challenges ------------ None Game ------ Seed RagnarokRecoilDrive Manual? 0 Play Time 00:53:28 Cumulative 188.6 hours Start 2025.11.20 @ 16:22:14 End 2025.11.20 @ 20:32:09 Sessions 3 Manual Loads 0 Difficulty Rogue Special Mode None Game No. 182 Rogue 182 Adventurer 0 Explorer 0 Win Type - Total 6 Types 5/0/1/0/0/0/0/0/0/0 Lore% 81 Gallery% 70 Achievement% 54 Wizard Run 0 Options --------- Layout 1 ASCII 0 Keyboard 1 Movement Arrows Keybinds 0 Fullscreen 1 Font 24/Smallcaps Map View 50x40 Zoom Use 0% Tactical HUD 1 Map Filters NONE Filters NONE Steam 1 RUN: 39463304-a047-4d84-bea3-6ceff8241e1e